[Event "USA-ch Junior Girls 2018"]
[Site "Saint Louis"]
[Date "2018.07.20"]
[Round "8"]
[White "Nguyen, Emily"]
[Black "Cervantes Landeiro, Thalia"]
[Result "0-1"]
[ECO "D21"]
[WhiteElo "2215"]
[BlackElo "2208"]
[Annotator "ChessBase"]
[PlyCount "210"]
[EventDate "2018.07.12"]
[EventType "tourn"]
[EventCountry "USA"]
[SourceTitle "playchess.com"]
[Source "ChessBase"]
[SourceQuality "1"]
[TimeControl "40/5400+30:1800+30"]

1. d4 {[%emt 0:00:00]} d5 {[%emt 0:00:00]} 2. c4 {[%emt 0:00:00]} dxc4 {[%emt 0:00:00]} 3. Nf3 {[%emt 0:00:00]} a6 {[%emt 0:00:00]} 4. e3 {[%emt 0:08:09]} Bg4 {[%emt 0:00:12]} 5. Bxc4 {[%emt 0:00:46]} e6 {[%emt 0:00:12]} 6. O-O {[%emt 0:01:56]} Nc6 {[%emt 0:00:25]} 7. b3 {[%emt 0:02:26]} Nf6 {[%emt 0:01:03]} 8. Bb2 {[%emt 0:01:08]} Bd6 {[%emt 0:06:13]} 9. Nbd2 {[%emt 0:01:07]} O-O {[%emt 0:01:33]} 10. Be2 {[%emt 0:08:30]} Nd7 {[%emt 0:17:06]} 11. Nc4 {[%emt 0:02:45]} Be7 {[%emt 0:01:14]} 12. e4 {[%emt 0:06:15]} Nf6 {[%emt 0:10:02]} 13. Ne3 {[%emt 0:01:59]} Bh5 {[%emt 0:03:01]} 14. d5 {[%emt 0:02:21]} exd5 {[%emt 0:02:50]} 15. e5 {[%emt 0:01:11]} Nd7 {[%emt 0:06:32]} 16. Qxd5 {[%emt 0:02:36]} Nb6 {[%emt 0:01:50]} 17. Qe4 {[%emt 0:00:20]} Bg6 {[%emt 0:00:23]} 18. Nf5 {[%emt 0:05:56]} Qc8 {[%emt 0:06:36]} 19. Nxe7+ {[%emt 0:02:48]} Nxe7 {[%emt 0:00:07]} 20. Qe3 {[%emt 0:06:16]} Nbd5 {[%emt 0:02:39]} 21. Qc1 {[%emt 0:00:22]} Rd8 {[%emt 0:01:47]} 22. Rd1 {[%emt 0:05:05]} Nc6 {[%emt 0:04:20]} 23. Bc4 {[%emt 0:06:07]} Nce7 {[%emt 0:04:25]} 24. Be2 {[%emt 0:09:39]} c5 {[%emt 0:06:27]} 25. Nh4 {[%emt 0:02:24]} Qc7 {[%emt 0:07:50]} 26. Nxg6 {[%emt 0:06:44]} Nxg6 {[%emt 0:01:21]} 27. Bf3 {[%emt 0:00:34]} Nb4 {[%emt 0:02:29]} 28. Be4 {[%emt 0:07:39]} Rxd1+ {[%emt 0:07:16]} 29. Qxd1 {[%emt 0:00:06]} Rd8 {[%emt 0:00:10]} 30. Qf3 {[%emt 0:04:27]} Nc6 {[%emt 0:05:02]} 31. Qg3 {[%emt 0:01:51]} Nd4 {[%emt 0:00:26]} 32. Bxd4 {[%emt 0:02:19]} Rxd4 {[%emt 0:01:34]} 33. Re1 {[%emt 0:00:48]} Qa5 {[%emt 0:00:36]} 34. Qe3 {[%emt 0:00:21]} Qc7 {[%emt 0:00:42]} 35. Bxg6 {[%emt 0:01:10]} hxg6 {[%emt 0:00:28]} 36. e6 {[%emt 0:00:04]} fxe6 {[%emt 0:00:07]} 37. Qxe6+ {[%emt 0:00:03]} Qf7 {[%emt 0:00:01]} 38. Qc8+ {[%emt 0:00:06]} Kh7 {[%emt 0:00:04]} 39. Qxc5 {[%emt 0:01:36]} Rd2 {[%emt 0:00:52]} 40. h3 {[%emt 0:00:00]} Rxa2 {[%emt 0:00:00]} 41. Re4 {[%emt 0:05:25]} Qf6 {[%emt 0:13:31]} 42. g3 {[%emt 0:03:29]} b6 {[%emt 0:04:39]} 43. Qe3 {[%emt 0:00:08]} Ra5 {[%emt 0:00:55]} 44. Kg2 {[%emt 0:05:56]} Qc6 {[%emt 0:01:41]} 45. Kh2 {[%emt 0:02:26]} Rh5 {[%emt 0:02:45]} 46. g4 Rc5 47. b4 {[%emt 0:07:48]} Rc3 {[%emt 0:02:58]} 48. Qd4 Rc2 49. Kg1 {[%emt 0:06:45]} Rc1+ {[%emt 0:03:00]} 50. Kh2 Qc7+ {[%emt 0:01:02]} 51. Kg2 {[%emt 0:00:26]} b5 {[%emt 0:02:42]} 52. g5 {[%emt 0:01:11]} Qc6 {[%emt 0:00:35]} 53. Kh2 Qc7+ {[%emt 0:00:39]} 54. Kg2 {[%emt 0:00:29]} Qb7 {[%emt 0:00:34]} 55. f3 {[%emt 0:01:37]} Rc2+ {[%emt 0:00:44]} 56. Kg1 {[%emt 0:00:14]} Rc8 {[%emt 0:01:03]} 57. Qe3 {[%emt 0:00:35]} Qf7 {[%emt 0:00:33]} 58. Kg2 {[%emt 0:02:18]} Qa2+ {[%emt 0:00:38]} 59. Kg3 {[%emt 0:00:07]} Qd5 {[%emt 0:00:26]} 60. Rd4 {[%emt 0:00:38]} Qf7 {[%emt 0:00:24]} 61. Rf4 {[%emt 0:00:27]} Qc7 {[%emt 0:00:26]} 62. Kg2 {[%emt 0:00:41]} Qc2+ {[%emt 0:00:35]} 63. Kg3 {[%emt 0:00:02]} Rc4 {[%emt 0:00:42]} 64. Rd4 {[%emt 0:02:05]} Rxd4 {[%emt 0:01:00]} 65. Qxd4 {[%emt 0:00:02]} Qc1 {[%emt 0:00:15]} 66. h4 {[%emt 0:00:31]} Qe1+ {[%emt 0:00:27]} 67. Kg2 {[%emt 0:00:03]} a5 {[%emt 0:00:54]} 68. bxa5 {[%emt 0:00:21]} Qxa5 {[%emt 0:00:03]} 69. Qd5 {[%emt 0:01:17]} Qa4 {[%emt 0:01:05]} 70. h5 {[%emt 0:00:14]} Qc2+ {[%emt 0:00:16]} 71. Kg3 {[%emt 0:00:09]} b4 {[%emt 0:00:45]} 72. hxg6+ {[%emt 0:00:15]} Qxg6 {[%emt 0:00:34]} 73. f4 {[%emt 0:00:06]} Qb1 {[%emt 0:00:32]} 74. f5 {[%emt 0:01:15]} Qg1+ {[%emt 0:00:40]} 75. Kf4 {[%emt 0:00:05]} Qh2+ {[%emt 0:00:28]} 76. Kg4 {[%emt 0:00:25]} Qe2+ {[%emt 0:00:33]} 77. Kf4 {[%emt 0:00:06]} Qf1+ {[%emt 0:00:03]} 78. Kg4 {[%emt 0:00:12]} Qg1+ {[%emt 0:00:58]} 79. Kf4 {[%emt 0:00:10]} Qf2+ {[%emt 0:00:51]} 80. Kg4 {[%emt 0:00:06]} Qe2+ {[%emt 0:01:01]} 81. Kf4 {[%emt 0:00:08]} Qh5 {[%emt 0:00:52]} 82. g6+ {[%emt 0:02:26]} Kh6 {[%emt 0:00:06]} 83. Qd3 {[%emt 0:02:15]} Qh4+ {[%emt 0:00:30]} 84. Ke5 {[%emt 0:00:03]} Qe7+ {[%emt 0:00:13]} 85. Kf4 {[%emt 0:00:03]} Qg5+ {[%emt 0:00:11]} 86. Ke4 {[%emt 0:01:18]} Qe7+ {[%emt 0:00:23]} 87. Kf4 {[%emt 0:00:27]} Qh4+ {[%emt 0:00:07]} 88. Ke5 {[%emt 0:00:05]} Qe7+ {[%emt 0:01:21]} 89. Kf4 {[%emt 0:00:06]} Qg5+ {[%emt 0:00:53]} 90. Ke5 {[%emt 0:01:11]} Qf6+ {[%emt 0:00:31]} 91. Kf4 {[%emt 0:00:10]} Qc3 {[%emt 0:00:29]} 92. Qe4 {[%emt 0:01:13]} Qh3 {[%emt 0:00:46]} 93. Ke5 {[%emt 0:00:28]} b3 {[%emt 0:00:26]} 94. Qb1 {[%emt 0:00:34]} Qe3+ {[%emt 0:00:23]} 95. Kd5 {[%emt 0:00:30]} Kg5 {[%emt 0:00:26]} 96. Qb2 {[%emt 0:00:12]} Qf3+ {[%emt 0:00:08]} 97. Kd6 {[%emt 0:00:43]} Qd3+ {[%emt 0:00:46]} 98. Ke7 {[%emt 0:00:26]} Qe4+ {[%emt 0:00:41]} 99. Kd6 {[%emt 0:00:15]} Qb4+ {[%emt 0:00:44]} 100. Ke6 {[%emt 0:00:48]} Qb6+ {[%emt 0:00:30]} 101. Kd5 {[%emt 0:00:17]} Qb5+ {[%emt 0:00:09]} 102. Kd6 {[%emt 0:00:22]} Qxf5 {[%emt 0:00:56]} 103. Qxb3 {[%emt 0:00:18]} Qxg6+ {[%emt 0:00:07]} 104. Ke5 {[%emt 0:00:50]} Qf6+ {[%emt 0:00:05]} 105. Ke4 {[%emt 0:00:09]} Qf4+ {[%emt 0:00:08]} 0-1

[Event "USA-ch Junior Girls 2018"]
[Site "Saint Louis"]
[Date "2018.07.20"]
[Round "8"]
[White "Wu, Rochelle"]
[Black "Morris-Suzuki, Sophie"]
[Result "0-1"]
[ECO "D25"]
[WhiteElo "2110"]
[BlackElo "1980"]
[Annotator "NA RC"]
[PlyCount "66"]
[EventDate "2018.07.12"]
[EventType "tourn"]
[EventCountry "USA"]
[SourceTitle "playchess.com"]
[Source "ChessBase"]
[SourceQuality "1"]
[TimeControl "40/5400+30:1800+30"]

1. d4 {[%emt 0:00:00]} d5 {[%emt 0:00:00]} 2. c4 {[%emt 0:00:00]} dxc4 {[%emt 0:00:00]} 3. Nf3 {[%emt 0:00:03]} Nf6 {[%emt 0:00:00]} 4. e3 {[%emt 0:00:23]} Bg4 {[%emt 0:00:00]} 5. Bxc4 {[%emt 0:00:41]} e6 {[%emt 0:00:00]} 6. O-O {[%emt 0:04:35]} a6 {[%emt 0:00:05]} 7. b3 {[%emt 0:05:14]} Nc6 {[%emt 0:00:44] D22: Queen's Gambit Accepted: 3 Nf3 a6 4 e3} (7... c5 8. dxc5 Qxd1 9. Rxd1 Bxc5 10. Bb2 Nc6 11. Nbd2 h6 12. Rac1 Be7 13. Be2 O-O 14. h3 Bh5 15. g4 {½-½ (36) Eljanov,P (2678)-Korobov,A (2702) Moscow 2013}) 8. Bb2 {[%emt 0:02:55]} Bd6 {[%emt 0:00:22]} 9. Nbd2 {[%emt 0:02:45]} O-O {[%emt 0:01:40]} 10. Be2 {[%emt 0:02:32]} Qe8 {[%emt 0:00:48]} 11. Nc4 {[%emt 0:02:00]} Rd8 {[%emt 0:01:36]} 12. Nxd6 {[%emt 0:01:53]} cxd6 {[%emt 0:00:13]} 13. Rc1 $146 {[%emt 0:06:08]} ({Predecessor:} 13. Nd2 Bf5 14. f3 Nd5 15. Nc4 {½-½ (33) Lundin,J (2284)-Rabiega,R (2560) Berlin 2008}) 13... e5 {[%emt 0:10:50]} 14. dxe5 {[%emt 0:05:00]} dxe5 {[%emt 0:00:22]} 15. Qe1 {[%emt 0:03:15]} Qe7 {[%emt 0:03:46]} 16. Rc4 {[%emt 0:03:49]} (16. h3 $5 {[%cal Rh3g4]} Bh5 17. Rxc6 bxc6 18. g4 $11) 16... Rfe8 {[%emt 0:12:25]} 17. h3 {[%emt 0:08:32]} Be6 {[%emt 0:20:33]} 18. Ra4 {[%emt 0:05:27]} Nd5 {[%emt 0:07:21]} 19. Qa1 {[%emt 0:11:19]} ({But not} 19. Nxe5 Nxe5 20. Bxe5 Bd7 $15) 19... Nb6 {[%emt 0:10:50]} 20. Rh4 {[%emt 0:01:22]} f6 {[%emt 0:03:34]} 21. Qb1 {[%emt 0:04:20]} f5 {[%emt 0:00:31]} 22. g3 {[%emt 0:03:24]} Qf6 {[%emt 0:00:00]} 23. Nxe5 $19 {[%emt 0:06:17]} (23. e4 $11 {and White has nothing to worry.}) 23... Nxe5 {[%emt 0:05:17]} 24. f4 {[%emt 0:00:04]} Qg6 {[%emt 0:04:34]} 25. Kf2 {[%emt 0:02:05]} Nc6 {[%emt 0:02:00]} 26. Qe1 {[%emt 0:02:00]} Bf7 {[%emt 0:03:12]} 27. Bh5 {[%emt 0:04:27]} Qd6 {[%emt 0:00:13]} 28. Bxf7+ {[%emt 0:00:55]} Kxf7 {[%emt 0:00:01]} 29. Bc3 {[%emt 0:00:46]} Nd5 {[%emt 0:01:02]} 30. Ba1 {[%emt 0:01:04]} Nxe3 {[%emt 0:00:52]} 31. Rxh7 {[%emt 0:00:54]} Qd2+ {[%emt 0:00:52]} 32. Qxd2 {[%emt 0:00:13]} Rxd2+ {[%emt 0:00:11]} 33. Kf3 {[%emt 0:00:05]} Nxf1 {[%emt 0:00:22]} 0-1

[Event "USA-ch Junior Girls 2018"]
[Site "Saint Louis"]
[Date "2018.07.20"]
[Round "8"]
[White "Vittal, Sanjana"]
[Black "Matus, Nastassja"]
[Result "1/2-1/2"]
[ECO "B11"]
[WhiteElo "1947"]
[BlackElo "1960"]
[Annotator "NA RC"]
[PlyCount "120"]
[EventDate "2018.07.12"]
[EventType "tourn"]
[EventCountry "USA"]
[SourceTitle "playchess.com"]
[Source "ChessBase"]
[SourceQuality "1"]
[TimeControl "40/5400+30:1800+30"]

1. e4 {[%emt 0:00:00]} c6 {[%emt 0:00:00]} 2. Nc3 {[%emt 0:00:00]} d5 {[%emt 0:00:00]} 3. Nf3 {[%emt 0:00:00]} Bg4 {[%emt 0:00:00]} 4. h3 {[%emt 0:00:00]} Bxf3 {[%emt 0:00:00]} 5. Qxf3 {[%emt 0:00:00]} e6 {[%emt 0:00:00]} 6. d3 {[%emt 0:00:10]} g6 {[%emt 0:00:40] B11: Caro-Kann (Zweispringer-Variante)} (6... Nd7 7. Bd2 Qb6 8. O-O-O Bd6 9. h4 Ne7 10. h5 Be5 11. h6 g6 12. Na4 Qc7 13. Nc3 Rc8 14. Ne2 c5 15. exd5 Nxd5 {0-1 (25) Liang,A (2572)-Mamedyarov,S (2804) chess.com INT 2018}) 7. Bd2 {[%emt 0:09:21]} Bg7 {[%emt 0:00:21]} 8. O-O-O {[%emt 0:04:10]} Nd7 {[%emt 0:00:28]} 9. g4 {[%emt 0:04:40]} Ne7 {[%emt 0:04:21]} 10. Qg3 {[%emt 0:01:36]} a5 $146 {[%emt 0:01:48]} ({Vorgänger:} 10... Qb8 11. f4 g5 12. Qh2 gxf4 13. Bxf4 Be5 14. Bxe5 Qxe5 15. Qxe5 Nxe5 {0-1 (56) Heinz,A (2317)-Mchedlishvili,M (2515) Pulvermuehle 2005}) 11. exd5 {[%emt 0:08:19]} cxd5 {[%emt 0:13:34]} (11... Nxd5 $11 {hält das Gleichgewicht.} 12. Nxd5 cxd5) 12. Nb5 {[%emt 0:02:20]} O-O {[%emt 0:02:07]} 13. d4 {[%emt 0:04:07]} Nc6 {[%emt 0:04:49]} 14. Bc3 {[%emt 0:04:55]} (14. Bf4 $16) 14... Nb6 {[%emt 0:05:07]} 15. h4 {[%emt 0:09:59]} Na4 {[%emt 0:12:49]} 16. Kb1 {[%emt 0:04:57]} ({White should try} 16. Be1 $14) 16... Nxc3+ {[%emt 0:02:28]} 17. Qxc3 {[%emt 0:00:33]} Qb6 {[%emt 0:05:52]} 18. h5 {[%emt 0:05:56]} Rfc8 {[%emt 0:09:34]} 19. Qe3 {[%emt 0:01:45]} a4 {[%emt 0:04:29]} 20. c3 {[%emt 0:11:28]} Na5 {[%emt 0:01:44]} 21. Na3 {[%emt 0:01:14]} Rc7 {[%emt 0:07:57]} 22. Qd3 {[%emt 0:03:23]} Nc4 {[%emt 0:04:17]} 23. Nxc4 {[%emt 0:00:06]} dxc4 {[%emt 0:00:13]} 24. Qc2 {[%emt 0:01:06]} a3 {[%emt 0:00:35]} 25. d5 $2 {[%emt 0:04:58]} (25. hxg6 $17 {ist zäher.} hxg6 26. Ka1) 25... exd5 {[%emt 0:02:06]} 26. Rxd5 {[%emt 0:00:07]} Qe6 {[%emt 0:02:39]} 27. Rd1 {[%emt 0:08:59]} Qxg4 {[%emt 0:03:24]} 28. hxg6 {[%emt 0:00:15]} Qxg6 {[%emt 0:02:13]} 29. Qxg6 {[%emt 0:00:52]} hxg6 {[%emt 0:00:42]} 30. Rh4 {[%emt 0:00:36]} axb2 {[%emt 0:01:53]} 31. Kxb2 {[%emt 0:00:46]} b5 {[%emt 0:00:22]} 32. Bg2 {[%emt 0:00:22]} Re8 {[%emt 0:00:29]} 33. Bf1 {[%emt 0:03:14]} b4 {[%emt 0:03:59]} 34. Rxc4 {[%emt 0:01:11]} Bxc3+ {[%emt 0:00:24]} 35. Kb1 {[%emt 0:01:19]} Ra7 {[%emt 0:01:06]} 36. Rc6 {[%emt 0:00:20]} Kg7 {[%emt 0:00:46]} 37. Bc4 {[%emt 0:00:56]} Re4 {[%emt 0:00:44]} 38. f3 {[%emt 0:03:47]} Rh4 {[%emt 0:01:01]} 39. Bb3 {[%emt 0:00:52]} Rh2 {[%emt 0:00:28]} 40. Kc1 {[%emt 0:00:00]} Rf2 {[%emt 0:00:00]} 41. Rd3 {[%emt 0:04:25]} Bb2+ {[%emt 0:07:54]} 42. Kd1 {[%emt 0:02:35]} Re7 {[%emt 0:00:53]} 43. Rc4 {[%emt 0:04:54]} Rf1+ {[%emt 0:02:56]} 44. Kc2 {[%emt 0:00:41]} Re2+ {[%emt 0:01:03]} 45. Rd2 {[%emt 0:00:05]} Rxd2+ {[%emt 0:00:22]} 46. Kxd2 {[%emt 0:00:04]} Rxf3 {[%emt 0:00:20]} 47. Ke2 {[%emt 0:00:06]} Rf5 {[%emt 0:02:30]} 48. Rxb4 {[%emt 0:00:10]} Bc3 {[%emt 0:00:31]} 49. Rc4 {[%emt 0:01:49]} Ba5 {[%emt 0:00:18]} 50. a4 $15 {[%emt 0:00:19]} Kh6 {[%emt 0:02:08]} 51. Rc6 {[%emt 0:01:43]} Kg5 {[%emt 0:01:27]} 52. Ra6 {[%emt 0:01:52]} f6 {[%emt 0:00:42]} 53. Bc2 {[%emt 0:01:15]} Rc5 {[%emt 0:01:11]} 54. Bd3 {[%emt 0:01:02]} Bc3 {[%emt 0:00:27]} 55. Bb5 {[%emt 0:03:12]} Kf4 {[%emt 0:03:24]} 56. Kd3 {[%emt 0:01:05]} Kf5 {[%emt 0:01:51]} 57. Bc4 {[%emt 0:03:16]} Be1 {[%emt 0:00:39]} 58. Bb5 {[%emt 0:02:39]} Bc3 {[%emt 0:07:21]} 59. Bc4 {[%emt 0:00:32]} Be1 {[%emt 0:01:05]} 60. Bb5 {[%emt 0:00:06]} Bc3 1/2-1/2

[Event "USA-ch Junior Girls 2018"]
[Site "Saint Louis"]
[Date "2018.07.21"]
[Round "9"]
[White "Yip, Carissa"]
[Black "Yu, Jennifer"]
[Result "1/2-1/2"]
[ECO "A06"]
[WhiteElo "2364"]
[BlackElo "2358"]
[Annotator "RC"]
[PlyCount "62"]
[EventDate "2018.07.12"]
[EventType "tourn"]
[EventCountry "USA"]
[SourceTitle "playchess.com"]
[Source "ChessBase"]
[SourceQuality "1"]
[TimeControl "40/5400+30:1800+30"]

1. Nf3 {[%emt 0:00:00]} d5 {[%emt 0:00:18]} 2. g3 {[%emt 0:00:00]} Nf6 {[%emt 0:00:39]} 3. Bg2 {[%emt 0:00:00]} e6 {[%emt 0:00:36]} 4. O-O {[%emt 0:00:08]} Bd6 {[%emt 0:00:32]} 5. d4 {[%emt 0:03:43]} O-O {[%emt 0:01:24]} 6. c4 {[%emt 0:00:53]} b6 {[%emt 0:02:23]} 7. Nc3 {[%emt 0:03:30]} Bb7 {[%emt 0:03:51]} 8. cxd5 {[%emt 0:02:04]} exd5 {[%emt 0:00:08]} 9. Nb5 {[%emt 0:00:07]} Be7 {[%emt 0:06:03]} 10. Bf4 {[%emt 0:01:05]} Na6 {[%emt 0:00:05]} 11. Rc1 {[%emt 0:00:29]} c6 {[%emt 0:00:39]} 12. Nc3 {[%emt 0:00:05]} Nc7 {[%emt 0:00:53]} 13. Bd2 {[%emt 0:11:42]} Ne6 {[%emt 0:02:54]} 14. e3 {[%emt 0:00:06]} Ne4 {[%emt 0:05:27]} 15. Nxe4 {[%emt 0:14:36]} dxe4 {[%emt 0:00:19]} 16. Ne5 {[%emt 0:00:34]} c5 {[%emt 0:00:14]} 17. dxc5 {[%emt 0:00:04]} Nxc5 {[%emt 0:03:46]} 18. b4 {[%emt 0:00:35]} Ne6 {[%emt 0:05:36]} 19. Nc6 {[%emt 0:00:53]} Bxc6 {[%emt 0:07:53]} 20. Rxc6 {[%emt 0:00:04]} Qd5 {[%emt 0:00:31]} 21. Qc2 {[%emt 0:01:29]} Rad8 {[%emt 0:00:46]} 22. Bc1 {[%emt 0:03:28]} Ng5 {[%emt 0:02:06]} 23. a3 {[%emt 0:07:01]} Nf3+ {[%emt 0:13:11]} 24. Bxf3 {[%emt 0:04:00]} exf3 {[%emt 0:00:09]} 25. Rc4 {[%emt 0:00:10]} Qh5 {[%emt 0:07:19]} 26. h4 {[%emt 0:03:02]} Rd6 {[%emt 0:15:43]} 27. Bb2 {[%emt 0:05:10]} Rg6 {[%emt 0:03:57]} 28. Rf4 {[%emt 0:00:31]} Rg4 {[%emt 0:07:49]} 29. Qf5 {[%emt 0:01:18]} Qxf5 {[%emt 0:00:13]} 30. Rxf5 {[%emt 0:00:04]} Bxh4 {[%emt 0:00:55]} 31. Rxf3 {[%emt 0:00:09]} Be7 {[%emt 0:03:44]} 1/2-1/2

[Event "USA-ch Junior Girls 2018"]
[Site "Saint Louis"]
[Date "2018.07.21"]
[Round "9"]
[White "Cervantes Landeiro, Thalia"]
[Black "Feng, Maggie"]
[Result "0-1"]
[ECO "E00"]
[WhiteElo "2208"]
[BlackElo "2236"]
[Annotator "RC"]
[PlyCount "88"]
[EventDate "2018.07.12"]
[EventType "tourn"]
[EventCountry "USA"]
[SourceTitle "playchess.com"]
[Source "ChessBase"]
[SourceQuality "1"]
[TimeControl "40/5400+30:1800+30"]

1. d4 {[%emt 0:00:00]} e6 {[%emt 0:00:18]} 2. c4 {[%emt 0:00:00]} Bb4+ {[%emt 0:01:41]} 3. Nc3 {[%emt 0:00:00]} Bxc3+ {[%emt 0:01:09]} 4. bxc3 {[%emt 0:00:00]} f5 {[%emt 0:00:07]} 5. Nf3 {[%emt 0:03:53]} Nf6 {[%emt 0:00:09]} 6. e3 {[%emt 0:01:12]} O-O {[%emt 0:01:14]} 7. Bd3 {[%emt 0:00:38]} b6 {[%emt 0:01:37]} 8. O-O {[%emt 0:00:11]} Ba6 {[%emt 0:04:45]} 9. Nd2 {[%emt 0:03:08]} Nc6 {[%emt 0:01:32]} 10. Qe2 {[%emt 0:02:22]} Na5 {[%emt 0:05:44]} 11. e4 {[%emt 0:11:35]} fxe4 {[%emt 0:12:12]} 12. Nxe4 {[%emt 0:00:15]} Nxe4 {[%emt 0:01:33]} 13. Qxe4 {[%emt 0:00:17]} g6 {[%emt 0:00:16]} 14. Qg4 {[%emt 0:14:17]} Qf6 {[%emt 0:02:41]} 15. Bg5 {[%emt 0:09:56]} Qf7 {[%emt 0:01:41]} 16. Bh6 {[%emt 0:02:21]} Rfe8 {[%emt 0:01:24]} 17. Rfe1 {[%emt 0:07:51]} Bxc4 {[%emt 0:06:01]} 18. Re3 {[%emt 0:03:22]} Bxd3 {[%emt 0:07:49]} 19. Rxd3 {[%emt 0:00:09]} Qf5 {[%emt 0:05:45]} 20. Qg3 {[%emt 0:00:24]} Qh5 {[%emt 0:00:53]} 21. Qf4 {[%emt 0:00:55]} Qf5 {[%emt 0:00:53]} 22. Qh4 {[%emt 0:05:34]} e5 {[%emt 0:05:18]} 23. Rf3 {[%emt 0:07:55]} Qe6 {[%emt 0:01:04]} 24. d5 {[%emt 0:01:43]} Qd6 {[%emt 0:01:06]} 25. Rd1 {[%emt 0:06:31]} e4 {[%emt 0:02:29]} 26. Rf6 {[%emt 0:03:51]} Qe5 {[%emt 0:00:51]} 27. Rd4 {[%emt 0:03:38]} Nb7 {[%emt 0:01:37]} 28. Bf4 {[%emt 0:05:42]} Qh5 {[%emt 0:05:22]} 29. Qxh5 {[%emt 0:01:33]} gxh5 {[%emt 0:00:07]} 30. Bxc7 {[%emt 0:02:44]} Rac8 {[%emt 0:00:59]} 31. d6 {[%emt 0:00:20]} Re5 {[%emt 0:04:55]} 32. h4 {[%emt 0:01:26]} Nc5 {[%emt 0:01:52]} 33. f4 {[%emt 0:01:54]} Ree8 {[%emt 0:04:40]} 34. Kf1 {[%emt 0:00:48]} e3 {[%emt 0:01:52]} 35. Ke2 {[%emt 0:00:09]} Ne4 {[%emt 0:00:09]} 36. Rxe4 {[%emt 0:00:47]} Rxe4 {[%emt 0:00:06]} 37. Rf5 {[%emt 0:00:27]} Rce8 {[%emt 0:00:52]} 38. g3 {[%emt 0:00:08]} Ra4 {[%emt 0:00:18]} 39. Rg5+ {[%emt 0:00:28]} Kf7 {[%emt 0:01:09]} 40. Rf5+ {[%emt 0:00:00]} Kg6 {[%emt 0:00:45]} 41. Rg5+ {[%emt 0:01:04]} Kf6 {[%emt 0:03:05]} 42. Re5 {[%emt 0:01:09]} Rxe5 {[%emt 0:00:16]} 43. fxe5+ {[%emt 0:00:10]} Kxe5 {[%emt 0:00:05]} 44. Kxe3 {[%emt 0:00:04]} Rxa2 {[%emt 0:00:08]} 0-1